[Event "*** Titled Tuesday Blitz"]
[Site "Chess.com"]
[Date "2020.05.19"]
[Round "2"]
[White "Zmeeed63"]
[Black "FrankieJay"]
[Result "1-0"]
[WhiteElo "2200"]
[BlackElo "2403"]
[TimeControl "180+1"]
[EndTime "12:19:28 PDT"]
[Termination "Zmeeed63 won by checkmate"]

1. d4 {[%clk 0:03:00.9]} 1... Nf6 {[%clk 0:03:00]} 2. c4 {[%clk 0:03:01.3]} 2...
g6 {[%clk 0:03:00.5]} 3. Nc3 {[%clk 0:03:01.6]} 3... Bg7 {[%clk 0:03:00.5]} 4.
Nf3 {[%clk 0:03:01.9]} 4... O-O {[%clk 0:03:00.8]} 5. Bg5 {[%clk 0:03:02.2]}
5... d6 {[%clk 0:02:55.5]} 6. e3 {[%clk 0:03:01]} 6... h6 {[%clk 0:02:55.5]} 7.
Bh4 {[%clk 0:03:00.7]} 7... g5 {[%clk 0:02:55.4]} 8. Bg3 {[%clk 0:03:00.8]} 8...
Nh5 {[%clk 0:02:55.9]} 9. Be2 {[%clk 0:03:00.5]} 9... f5 {[%clk 0:02:52.8]} 10.
Qd3 {[%clk 0:02:58.6]} 10... Nc6 {[%clk 0:02:48.2]} 11. Nd2 {[%clk 0:02:47]}
11... Nxg3 {[%clk 0:02:47.6]} 12. hxg3 {[%clk 0:02:47.9]} 12... e5 {[%clk
0:02:43.1]} 13. d5 {[%clk 0:02:40.8]} 13... e4 {[%clk 0:02:42.3]} 14. Qb1 {[%clk
0:02:39.2]} 14... Ne5 {[%clk 0:02:40.1]} 15. Qc2 {[%clk 0:02:28.6]} 15... Bd7
{[%clk 0:02:37.6]} 16. g4 {[%clk 0:02:24.9]} 16... fxg4 {[%clk 0:02:37.5]} 17.
Ncxe4 {[%clk 0:02:21.9]} 17... Bf5 {[%clk 0:02:36.9]} 18. Qb3 {[%clk 0:02:18.2]}
18... a5 {[%clk 0:02:26.3]} 19. Ng3 {[%clk 0:02:15.6]} 19... Bg6 {[%clk
0:02:21.3]} 20. e4 {[%clk 0:02:12.6]} 20... a4 {[%clk 0:02:11.8]} 21. Qa3 {[%clk
0:01:58.1]} 21... Qf6 {[%clk 0:02:07]} 22. Qe3 {[%clk 0:01:35.7]} 22... a3
{[%clk 0:01:50.1]} 23. Rb1 {[%clk 0:01:33.6]} 23... axb2 {[%clk 0:01:46.9]} 24.
a3 {[%clk 0:01:19.9]} 24... Ra6 {[%clk 0:01:22.1]} 25. Nh5 {[%clk 0:00:52.1]}
25... Bxh5 {[%clk 0:01:20.1]} 26. Rxh5 {[%clk 0:00:53]} 26... Rfa8 {[%clk
0:01:10.4]} 27. Rxb2 {[%clk 0:00:39.4]} 27... Nd3+ {[%clk 0:01:05.2]} 28. Bxd3
{[%clk 0:00:22.1]} 28... Qxb2 {[%clk 0:01:05.5]} 29. e5 {[%clk 0:00:15.8]} 29...
dxe5 {[%clk 0:00:59.1]} 30. Qe4 {[%clk 0:00:15.7]} 30... Rxa3 {[%clk 0:00:37.1]}
31. Qh7+ {[%clk 0:00:15.7]} 31... Kf8 {[%clk 0:00:37.5]} 32. Rxh6 {[%clk
0:00:15.5]} 32... Rxd3 {[%clk 0:00:26.1]} 33. Qxd3 {[%clk 0:00:08.2]} 33... Bxh6
{[%clk 0:00:20.5]} 34. Qf5+ {[%clk 0:00:08.7]} 34... Kg8 {[%clk 0:00:21]} 35.
Qe6+ {[%clk 0:00:08.3]} 35... Kh7 {[%clk 0:00:20.8]} 36. Qf7+ {[%clk 0:00:07.7]}
36... Bg7 {[%clk 0:00:19.9]} 37. Qf5+ {[%clk 0:00:07.9]} 37... Kg8 {[%clk
0:00:20.2]} 38. Qe6+ {[%clk 0:00:06]} 38... Kh8 {[%clk 0:00:20.8]} 39. Qxg4
{[%clk 0:00:05.5]} 39... Ra1+ {[%clk 0:00:20.5]} 40. Ke2 {[%clk 0:00:05.6]}
40... Qd4 {[%clk 0:00:05.9]} 41. Qh5+ {[%clk 0:00:05.5]} 41... Kg8 {[%clk
0:00:05.9]} 42. Qe8+ {[%clk 0:00:05.3]} 42... Kh7 {[%clk 0:00:06.2]} 43. Qh5+
{[%clk 0:00:05.5]} 43... Bh6 {[%clk 0:00:06.8]} 44. Qf7+ {[%clk 0:00:05.8]}
44... Kh8 {[%clk 0:00:07.3]} 45. Qe8+ {[%clk 0:00:05.2]} 45... Kg7 {[%clk
0:00:07.8]} 46. Qe7+ {[%clk 0:00:03.8]} 46... Kg8 {[%clk 0:00:08]} 47. Qe8+
{[%clk 0:00:03.5]} 47... Bf8 {[%clk 0:00:07.8]} 48. Qg6+ {[%clk 0:00:03.8]}
48... Bg7 {[%clk 0:00:06.1]} 49. Qe8+ {[%clk 0:00:03.8]} 49... Kh7 {[%clk
0:00:06.7]} 50. Qh5+ {[%clk 0:00:04.3]} 50... Bh6 {[%clk 0:00:07.2]} 51. Qf7+
{[%clk 0:00:04.4]} 51... Kh8 {[%clk 0:00:07.7]} 52. Qe8+ {[%clk 0:00:04.5]}
52... Kg7 {[%clk 0:00:08.4]} 53. Qe7+ {[%clk 0:00:04.6]} 53... Kg6 {[%clk
0:00:08.9]} 54. Qe8+ {[%clk 0:00:04.9]} 54... Kf5 {[%clk 0:00:07.6]} 55. Qf7+
{[%clk 0:00:04]} 55... Kg4 {[%clk 0:00:06.6]} 56. Qf3+ {[%clk 0:00:04.2]} 56...
Kh4 {[%clk 0:00:07.2]} 57. Qh3# {[%clk 0:00:05.1]} 1-0

[Event "*** Titled Tuesday Blitz"]
[Site "Chess.com"]
[Date "2020.05.19"]
[Round "2"]
[White "Doraemon7"]
[Black "LogoCzar"]
[Result "0-1"]
[WhiteElo "2653"]
[BlackElo "2456"]
[TimeControl "180+1"]
[EndTime "12:19:29 PDT"]
[Termination "LogoCzar won by resignation"]

1. Nf3 {[%clk 0:03:00.8]} 1... d5 {[%clk 0:02:56.9]} 2. d4 {[%clk 0:03:00.8]}
2... Nf6 {[%clk 0:02:55.8]} 3. c4 {[%clk 0:03:01]} 3... c6 {[%clk 0:02:56]} 4.
e3 {[%clk 0:03:01.1]} 4... e6 {[%clk 0:02:56]} 5. Bd3 {[%clk 0:02:59.5]} 5...
Nbd7 {[%clk 0:02:56]} 6. O-O {[%clk 0:03:00.4]} 6... Bd6 {[%clk 0:02:55.8]} 7.
b3 {[%clk 0:03:01.1]} 7... O-O {[%clk 0:02:54.9]} 8. Bb2 {[%clk 0:03:01.4]} 8...
b6 {[%clk 0:02:55.1]} 9. Ne5 {[%clk 0:03:01.2]} 9... Bb7 {[%clk 0:02:53.6]} 10.
Qf3 {[%clk 0:02:53.9]} 10... Qc7 {[%clk 0:02:49]} 11. Qg3 {[%clk 0:02:51.5]}
11... Ne4 {[%clk 0:02:42]} 12. Bxe4 {[%clk 0:02:34.7]} 12... dxe4 {[%clk
0:02:41.6]} 13. Nd2 {[%clk 0:01:55.6]} 13... f6 {[%clk 0:02:39.9]} 14. Nxe4
{[%clk 0:01:55]} 14... fxe5 {[%clk 0:02:38.5]} 15. Nxd6 {[%clk 0:01:50.4]} 15...
Qxd6 {[%clk 0:02:37.9]} 16. dxe5 {[%clk 0:01:50.1]} 16... Qe7 {[%clk 0:02:37.4]}
17. Rad1 {[%clk 0:01:47.5]} 17... Nc5 {[%clk 0:02:35.2]} 18. Qg4 {[%clk
0:01:40.1]} 18... Rad8 {[%clk 0:02:31.6]} 19. Rd6 {[%clk 0:01:38.6]} 19... Rxd6
{[%clk 0:02:09.6]} 20. exd6 {[%clk 0:01:39.5]} 20... Qf7 {[%clk 0:02:08.8]} 21.
f3 {[%clk 0:01:24.6]} 21... Nd7 {[%clk 0:02:02.6]} 22. Rd1 {[%clk 0:01:14.5]}
22... c5 {[%clk 0:01:56.8]} 23. Qg5 {[%clk 0:01:10.9]} 23... h6 {[%clk
0:01:48.5]} 24. Qe7 {[%clk 0:01:05.2]} 24... Re8 {[%clk 0:01:41.2]} 25. Qh4
{[%clk 0:01:04.3]} 25... e5 {[%clk 0:01:36.8]} 26. e4 {[%clk 0:00:58.6]} 26...
Qf6 {[%clk 0:01:29.2]} 27. Qf2 {[%clk 0:00:53.3]} 27... Rd8 {[%clk 0:01:26.2]}
28. Qg3 {[%clk 0:00:42.1]} 28... g5 {[%clk 0:01:19.6]} 29. Bc3 {[%clk
0:00:28.9]} 29... Qf4 {[%clk 0:01:16.9]} 30. Qf2 {[%clk 0:00:27.9]} 30... Nb8
{[%clk 0:01:15.4]} 31. g3 {[%clk 0:00:26.1]} 31... Qf6 {[%clk 0:01:11.5]} 32.
Qe3 {[%clk 0:00:10.9]} 32... Rxd6 {[%clk 0:01:07.4]} 33. Rf1 {[%clk 0:00:11.6]}
33... Qg7 {[%clk 0:00:57.3]} 34. h3 {[%clk 0:00:11.9]} 34... Nc6 {[%clk
0:00:55.7]} 35. Kh2 {[%clk 0:00:11.3]} 35... Nd4 {[%clk 0:00:55.1]} 36. Rf2
{[%clk 0:00:12.2]} 36... Rf6 {[%clk 0:00:51.8]} 37. b4 {[%clk 0:00:12]} 37...
Qf7 {[%clk 0:00:50.6]} 38. Kg2 {[%clk 0:00:12.9]} 38... Qxc4 {[%clk 0:00:47.5]}
39. bxc5 {[%clk 0:00:13.5]} 39... bxc5 {[%clk 0:00:44.5]} 40. Ba1 {[%clk
0:00:09.4]} 40... Nc2 {[%clk 0:00:31.7]} 41. Qc1 {[%clk 0:00:04]} 41... Na3
{[%clk 0:00:15.3]} 42. Qxa3 {[%clk 0:00:04.3]} 42... Bxe4 {[%clk 0:00:15.5]} 43.
Bxe5 {[%clk 0:00:04.2]} 43... Rxf3 {[%clk 0:00:14.5]} 44. Rxf3 {[%clk
0:00:03.2]} 44... Qe2+ {[%clk 0:00:14.6]} 45. Kg1 {[%clk 0:00:02.7]} 45... Bxf3
{[%clk 0:00:14.5]} 46. Qb3+ {[%clk 0:00:03]} 46... c4 {[%clk 0:00:14.4]} 47.
Qb8+ {[%clk 0:00:02.8]} 47... Kf7 {[%clk 0:00:14.4]} 48. Qc7+ {[%clk 0:00:03.1]}
48... Kg6 {[%clk 0:00:13.5]} 49. Qd6+ {[%clk 0:00:03.6]} 49... Kf5 {[%clk
0:00:12.4]} 50. Qf6+ {[%clk 0:00:03.8]} 50... Ke4 {[%clk 0:00:12.3]} 51. Qg6+
{[%clk 0:00:03]} 51... Kxe5 {[%clk 0:00:12.1]} 52. Qe8+ {[%clk 0:00:03.7]} 52...
Kd4 {[%clk 0:00:12.1]} 53. Qxe2 {[%clk 0:00:04.6]} 53... Bxe2 {[%clk 0:00:12.3]}
54. h4 {[%clk 0:00:05.5]} 54... c3 {[%clk 0:00:11.8]} 0-1

[Event "*** Titled Tuesday Blitz"]
[Site "Chess.com"]
[Date "2020.05.19"]
[Round "2"]
[White "JLRHei"]
[Black "IIIlllII1llIl"]
[Result "0-1"]
[WhiteElo "2340"]
[BlackElo "2634"]
[TimeControl "180+1"]
[EndTime "12:19:29 PDT"]
[Termination "IIIlllII1llIl won by checkmate"]

1. d4 {[%clk 0:03:00.8]} 1... Nf6 {[%clk 0:02:59.4]} 2. c4 {[%clk 0:03:01.4]}
2... g6 {[%clk 0:02:59.4]} 3. Nf3 {[%clk 0:03:02]} 3... Bg7 {[%clk 0:02:59.5]}
4. g3 {[%clk 0:03:02.9]} 4... c6 {[%clk 0:02:55.8]} 5. Bg2 {[%clk 0:03:03.1]}
5... d5 {[%clk 0:02:55.7]} 6. O-O {[%clk 0:03:04]} 6... O-O {[%clk 0:02:54.9]}
7. Nbd2 {[%clk 0:03:04.6]} 7... Bf5 {[%clk 0:02:52.2]} 8. Nh4 {[%clk 0:03:03.8]}
8... Be6 {[%clk 0:02:50.2]} 9. b3 {[%clk 0:02:59.7]} 9... c5 {[%clk 0:01:58.3]}
10. Bb2 {[%clk 0:02:44.2]} 10... cxd4 {[%clk 0:01:53.1]} 11. Bxd4 {[%clk
0:02:44.5]} 11... Nc6 {[%clk 0:01:51.6]} 12. Bb2 {[%clk 0:02:43.8]} 12... Qa5
{[%clk 0:01:29.7]} 13. cxd5 {[%clk 0:02:36.8]} 13... Bxd5 {[%clk 0:01:18.2]} 14.
Nc4 {[%clk 0:02:36.9]} 14... Bxc4 {[%clk 0:00:56.7]} 15. bxc4 {[%clk 0:02:37.8]}
15... Rac8 {[%clk 0:00:50.1]} 16. Qb3 {[%clk 0:02:30.3]} 16... Qc7 {[%clk
0:00:45]} 17. Bc3 {[%clk 0:01:36.7]} 17... Nd7 {[%clk 0:00:33.8]} 18. Rfc1
{[%clk 0:01:29]} 18... Nc5 {[%clk 0:00:24.6]} 19. Qa3 {[%clk 0:01:24.1]} 19...
Nd4 {[%clk 0:00:21.5]} 20. Bxd4 {[%clk 0:01:14.9]} 20... Bxd4 {[%clk 0:00:22.4]}
21. Rab1 {[%clk 0:01:15.1]} 21... b6 {[%clk 0:00:21.6]} 22. Nf3 {[%clk 0:01:14]}
22... Bf6 {[%clk 0:00:20.2]} 23. h4 {[%clk 0:01:03.6]} 23... Rfd8 {[%clk
0:00:19.6]} 24. Rc2 {[%clk 0:00:52.5]} 24... h5 {[%clk 0:00:16.2]} 25. Rbc1
{[%clk 0:00:51.9]} 25... Kg7 {[%clk 0:00:15.8]} 26. Kh2 {[%clk 0:00:51.5]} 26...
Rd7 {[%clk 0:00:14.5]} 27. Qe3 {[%clk 0:00:50.8]} 27... Rcd8 {[%clk 0:00:13.7]}
28. Ng5 {[%clk 0:00:48.2]} 28... Qe5 {[%clk 0:00:11.4]} 29. Qxe5 {[%clk
0:00:42.3]} 29... Bxe5 {[%clk 0:00:12.3]} 30. Bc6 {[%clk 0:00:39.8]} 30... Rd2
{[%clk 0:00:11]} 31. Bd5 {[%clk 0:00:40.1]} 31... Rxc2 {[%clk 0:00:10.4]} 32.
Rxc2 {[%clk 0:00:41]} 32... e6 {[%clk 0:00:10.6]} 33. Bf3 {[%clk 0:00:41.3]}
33... Rd1 {[%clk 0:00:10.5]} 34. Ne4 {[%clk 0:00:39.6]} 34... Nxe4 {[%clk
0:00:07.2]} 35. Bxe4 {[%clk 0:00:40.5]} 35... f5 {[%clk 0:00:06.4]} 36. Bd3
{[%clk 0:00:40.6]} 36... f4 {[%clk 0:00:06.7]} 37. Kg2 {[%clk 0:00:39.7]} 37...
fxg3 {[%clk 0:00:06.1]} 38. fxg3 {[%clk 0:00:40.6]} 38... Rb1 {[%clk 0:00:05.7]}
39. c5 {[%clk 0:00:40.7]} 39... bxc5 {[%clk 0:00:04.9]} 40. Rxc5 {[%clk
0:00:41.6]} 40... Bd6 {[%clk 0:00:02.7]} 41. Rc6 {[%clk 0:00:40.9]} 41... Rb6
{[%clk 0:00:03.6]} 42. Rc2 {[%clk 0:00:35.6]} 42... Kf6 {[%clk 0:00:03.9]} 43.
Kf3 {[%clk 0:00:33.8]} 43... a5 {[%clk 0:00:04]} 44. e4 {[%clk 0:00:33.7]} 44...
a4 {[%clk 0:00:03.7]} 45. Bc4 {[%clk 0:00:31.4]} 45... a3 {[%clk 0:00:03.7]} 46.
Bb3 {[%clk 0:00:31.6]} 46... Rxb3+ {[%clk 0:00:02.3]} 47. axb3 {[%clk
0:00:31.6]} 47... Be5 {[%clk 0:00:02.9]} 48. b4 {[%clk 0:00:30.6]} 48... Bb2
{[%clk 0:00:03.1]} 49. e5+ {[%clk 0:00:20.2]} 49... Kf5 {[%clk 0:00:03.5]} 50.
Rc8 {[%clk 0:00:12.8]} 50... a2 {[%clk 0:00:03.6]} 51. Ra8 {[%clk 0:00:13.7]}
51... a1=Q {[%clk 0:00:03.6]} 52. Rxa1 {[%clk 0:00:14]} 52... Bxa1 {[%clk
0:00:04.5]} 53. b5 {[%clk 0:00:14.2]} 53... Bxe5 {[%clk 0:00:05.4]} 54. b6
{[%clk 0:00:14.3]} 54... Bb8 {[%clk 0:00:05.4]} 55. b7 {[%clk 0:00:14.9]} 55...
e5 {[%clk 0:00:05.8]} 56. Ke3 {[%clk 0:00:15.1]} 56... e4 {[%clk 0:00:06.3]} 57.
Kf2 {[%clk 0:00:16]} 57... Ke5 {[%clk 0:00:05.7]} 58. Kg2 {[%clk 0:00:16.9]}
58... Kf5 {[%clk 0:00:05.6]} 59. Kf2 {[%clk 0:00:16.7]} 59... Ba7+ {[%clk
0:00:05.8]} 60. Kg2 {[%clk 0:00:17.6]} 60... Kg4 {[%clk 0:00:05.9]} 61. Kh2
{[%clk 0:00:17.4]} 61... Kf3 {[%clk 0:00:06]} 62. Kh3 {[%clk 0:00:18.3]} 62...
Bb8 {[%clk 0:00:05.4]} 63. g4 {[%clk 0:00:19.2]} 63... hxg4# {[%clk 0:00:05]}
0-1

[Event "*** Titled Tuesday Blitz"]
[Site "Chess.com"]
[Date "2020.05.19"]
[Round "2"]
[White "Igor_Lysyj"]
[Black "IljaJoke"]
[Result "0-1"]
[WhiteElo "2789"]
[BlackElo "2531"]
[TimeControl "180+1"]
[EndTime "12:19:30 PDT"]
[Termination "IljaJoke won by resignation"]

1. d4 {[%clk 0:02:59.9]} 1... Nf6 {[%clk 0:02:59.8]} 2. c4 {[%clk 0:02:59.5]}
2... g6 {[%clk 0:03:00]} 3. Nc3 {[%clk 0:02:59.1]} 3... d5 {[%clk 0:03:00.3]} 4.
cxd5 {[%clk 0:02:59]} 4... Nxd5 {[%clk 0:03:01.2]} 5. e4 {[%clk 0:02:59.2]} 5...
Nxc3 {[%clk 0:03:01.4]} 6. bxc3 {[%clk 0:02:59.5]} 6... Bg7 {[%clk 0:03:02]} 7.
Bg5 {[%clk 0:02:59]} 7... c5 {[%clk 0:03:00.4]} 8. Rc1 {[%clk 0:02:58.4]} 8...
O-O {[%clk 0:02:51.4]} 9. Nf3 {[%clk 0:02:57.3]} 9... Bg4 {[%clk 0:02:48.6]} 10.
d5 {[%clk 0:02:55.5]} 10... Qd6 {[%clk 0:02:48.9]} 11. Be2 {[%clk 0:02:54.8]}
11... Nd7 {[%clk 0:02:46.9]} 12. c4 {[%clk 0:02:53.3]} 12... e6 {[%clk
0:02:41.8]} 13. O-O {[%clk 0:02:46]} 13... exd5 {[%clk 0:02:40.8]} 14. exd5
{[%clk 0:02:44.8]} 14... Rfe8 {[%clk 0:02:40.8]} 15. h3 {[%clk 0:02:42.2]} 15...
Bxf3 {[%clk 0:02:38.9]} 16. Bxf3 {[%clk 0:02:42.3]} 16... Bd4 {[%clk 0:02:34.7]}
17. Qb3 {[%clk 0:02:39.1]} 17... b6 {[%clk 0:02:20.8]} 18. Rce1 {[%clk
0:02:25.2]} 18... Qg3 {[%clk 0:01:48.2]} 19. Be3 {[%clk 0:02:00.8]} 19... Qe5
{[%clk 0:01:08.6]} 20. Bd2 {[%clk 0:01:54.8]} 20... Qd6 {[%clk 0:01:00.5]} 21.
a4 {[%clk 0:01:47.1]} 21... Ne5 {[%clk 0:00:50.9]} 22. Be2 {[%clk 0:01:39.7]}
22... Qf6 {[%clk 0:00:42.9]} 23. g3 {[%clk 0:01:37.4]} 23... h5 {[%clk
0:00:41.3]} 24. Kg2 {[%clk 0:01:36.1]} 24... h4 {[%clk 0:00:41]} 25. f4 {[%clk
0:01:31.9]} 25... Nd7 {[%clk 0:00:29.5]} 26. Bg4 {[%clk 0:01:29.7]} 26... Nf8
{[%clk 0:00:27]} 27. f5 {[%clk 0:01:13.3]} 27... Rxe1 {[%clk 0:00:24.4]} 28.
Bxe1 {[%clk 0:01:12.1]} 28... g5 {[%clk 0:00:13.1]} 29. gxh4 {[%clk 0:01:08.5]}
29... gxh4 {[%clk 0:00:14]} 30. Bd2 {[%clk 0:01:01.7]} 30... Re8 {[%clk
0:00:13.6]} 31. Qf3 {[%clk 0:00:50.8]} 31... Nh7 {[%clk 0:00:13.3]} 32. Re1
{[%clk 0:00:49.6]} 32... Rxe1 {[%clk 0:00:12.8]} 33. Bxe1 {[%clk 0:00:49.7]}
33... Ng5 {[%clk 0:00:13.7]} 34. Qf4 {[%clk 0:00:45.2]} 34... Be5 {[%clk
0:00:12.9]} 35. Qe3 {[%clk 0:00:44.5]} 35... Nh7 {[%clk 0:00:08.6]} 36. Bd2
{[%clk 0:00:25.9]} 36... Kf8 {[%clk 0:00:07.6]} 37. Qe4 {[%clk 0:00:23.8]} 37...
Ke7 {[%clk 0:00:05.8]} 38. a5 {[%clk 0:00:16.1]} 38... Kd6 {[%clk 0:00:04.9]}
39. axb6 {[%clk 0:00:15.9]} 39... axb6 {[%clk 0:00:05.8]} 40. Qb1 {[%clk
0:00:15.6]} 40... Kc7 {[%clk 0:00:05.9]} 41. Qa2 {[%clk 0:00:15.7]} 41... Kb7
{[%clk 0:00:04.5]} 42. Qa4 {[%clk 0:00:15.3]} 42... Qd6 {[%clk 0:00:04]} 43. Qe8
{[%clk 0:00:14.7]} 43... Qc7 {[%clk 0:00:04.4]} 44. Bf3 {[%clk 0:00:13.7]} 44...
Bd6 {[%clk 0:00:03.7]} 45. Bf4 {[%clk 0:00:13.1]} 45... Nf6 {[%clk 0:00:03.3]}
46. Bxd6 {[%clk 0:00:10.8]} 46... Nxe8 {[%clk 0:00:03.2]} 47. Bxc7 {[%clk
0:00:10.2]} 47... Kxc7 {[%clk 0:00:04.1]} 48. Be4 {[%clk 0:00:08.7]} 48... Kd6
{[%clk 0:00:04.5]} 49. Kf3 {[%clk 0:00:09]} 49... Ke5 {[%clk 0:00:05.1]} 50. Bc2
{[%clk 0:00:08.9]} 50... Nd6 {[%clk 0:00:05.7]} 51. Kg4 {[%clk 0:00:08.6]} 51...
Nxc4 {[%clk 0:00:05.7]} 52. Kxh4 {[%clk 0:00:08.8]} 52... Ne3 {[%clk 0:00:06.1]}
53. Bd3 {[%clk 0:00:08.3]} 53... Nxd5 {[%clk 0:00:06.4]} 54. Kg5 {[%clk
0:00:08.5]} 54... Nf4 {[%clk 0:00:06.3]} 55. Bf1 {[%clk 0:00:08.4]} 55... c4
{[%clk 0:00:06.6]} 56. h4 {[%clk 0:00:08.5]} 56... c3 {[%clk 0:00:06.5]} 57. h5
{[%clk 0:00:08.6]} 57... Nxh5 {[%clk 0:00:06.8]} 58. Kxh5 {[%clk 0:00:07.8]}
58... c2 {[%clk 0:00:06.8]} 0-1

[Event "*** Titled Tuesday Blitz"]
[Site "Chess.com"]
[Date "2020.05.19"]
[Round "2"]
[White "Noam_Vitenberg"]
[Black "icychess54"]
[Result "0-1"]
[WhiteElo "2438"]
[BlackElo "2255"]
[TimeControl "180+1"]
[EndTime "12:19:31 PDT"]
[Termination "icychess54 won on time"]

1. d4 {[%clk 0:03:00.9]} 1... d5 {[%clk 0:02:58.8]} 2. c4 {[%clk 0:02:59]} 2...
c6 {[%clk 0:02:59]} 3. Nf3 {[%clk 0:02:56.4]} 3... Nf6 {[%clk 0:02:59.2]} 4. Nc3
{[%clk 0:02:54.1]} 4... e6 {[%clk 0:02:59.5]} 5. Bg5 {[%clk 0:02:51.6]} 5...
Nbd7 {[%clk 0:02:59.9]} 6. e3 {[%clk 0:02:50.7]} 6... Qa5 {[%clk 0:02:59.9]} 7.
Nd2 {[%clk 0:02:48.5]} 7... Ne4 {[%clk 0:02:59.8]} 8. Ncxe4 {[%clk 0:02:35.6]}
8... dxe4 {[%clk 0:03:00.7]} 9. Bh4 {[%clk 0:02:35.1]} 9... e5 {[%clk
0:02:45.4]} 10. Be2 {[%clk 0:02:33.1]} 10... Bb4 {[%clk 0:02:19]} 11. a3 {[%clk
0:02:31.3]} 11... Bxd2+ {[%clk 0:02:17.7]} 12. Qxd2 {[%clk 0:02:31.7]} 12...
Qxd2+ {[%clk 0:02:18.5]} 13. Kxd2 {[%clk 0:02:32.1]} 13... exd4 {[%clk
0:02:18.8]} 14. exd4 {[%clk 0:02:32.8]} 14... f5 {[%clk 0:02:14.6]} 15. f3
{[%clk 0:02:26.1]} 15... exf3 {[%clk 0:02:13.3]} 16. Bxf3 {[%clk 0:02:25.1]}
16... Kf7 {[%clk 0:02:10.1]} 17. Rhe1 {[%clk 0:02:20.5]} 17... Nf6 {[%clk
0:02:09.2]} 18. Kc3 {[%clk 0:02:18.1]} 18... Bd7 {[%clk 0:02:06]} 19. Re5 {[%clk
0:02:16]} 19... Rhe8 {[%clk 0:01:55]} 20. Rae1 {[%clk 0:02:13.3]} 20... h6
{[%clk 0:01:36.2]} 21. b4 {[%clk 0:02:01.5]} 21... g5 {[%clk 0:01:31.9]} 22. Bf2
{[%clk 0:01:59.7]} 22... g4 {[%clk 0:01:29.7]} 23. Bd1 {[%clk 0:01:33.9]} 23...
Rxe5 {[%clk 0:01:11.7]} 24. dxe5 {[%clk 0:01:25.9]} 24... Ne4+ {[%clk
0:01:11.6]} 25. Rxe4 {[%clk 0:01:25.2]} 25... fxe4 {[%clk 0:01:12.5]} 26. Kd4
{[%clk 0:01:22.7]} 26... Bf5 {[%clk 0:01:02.1]} 27. Ke3 {[%clk 0:01:19.4]} 27...
Ke6 {[%clk 0:00:55.2]} 28. Bg3 {[%clk 0:01:09.4]} 28... Rd8 {[%clk 0:00:53.3]}
29. Bc2 {[%clk 0:01:07.5]} 29... a5 {[%clk 0:00:37.7]} 30. Bf4 {[%clk
0:00:46.8]} 30... axb4 {[%clk 0:00:32.5]} 31. axb4 {[%clk 0:00:47.7]} 31... Ra8
{[%clk 0:00:31.2]} 32. Bxe4 {[%clk 0:00:30]} 32... Bxe4 {[%clk 0:00:20.1]} 33.
Kxe4 {[%clk 0:00:26.1]} 33... h5 {[%clk 0:00:20.8]} 34. h3 {[%clk 0:00:22.3]}
34... gxh3 {[%clk 0:00:19.7]} 35. gxh3 {[%clk 0:00:21.9]} 35... Ra3 {[%clk
0:00:20.6]} 36. h4 {[%clk 0:00:20.6]} 36... Rb3 {[%clk 0:00:19.8]} 37. Bd2
{[%clk 0:00:20.6]} 37... Rh3 {[%clk 0:00:19.5]} 38. Bg5 {[%clk 0:00:19.3]} 38...
Rb3 {[%clk 0:00:19.3]} 39. Bd2 {[%clk 0:00:19.1]} 39... b5 {[%clk 0:00:19.2]}
40. cxb5 {[%clk 0:00:18.2]} 40... cxb5 {[%clk 0:00:19.1]} 41. Kd4 {[%clk
0:00:18.5]} 41... Rh3 {[%clk 0:00:17.9]} 42. Bg5 {[%clk 0:00:18.2]} 42... Rf3
{[%clk 0:00:15.9]} 43. Kc5 {[%clk 0:00:17.7]} 43... Kxe5 {[%clk 0:00:14.6]} 44.
Kxb5 {[%clk 0:00:17.9]} 44... Kd5 {[%clk 0:00:14.8]} 45. Kb6 {[%clk 0:00:17.2]}
45... Rb3 {[%clk 0:00:14.8]} 46. Be7 {[%clk 0:00:15]} 46... Kc4 {[%clk
0:00:14.6]} 47. Kc6 {[%clk 0:00:13.6]} 47... Re3 {[%clk 0:00:12.2]} 48. Kd7
{[%clk 0:00:13.5]} 48... Kb5 {[%clk 0:00:10.8]} 49. Ke8 {[%clk 0:00:09.9]} 49...
Re4 {[%clk 0:00:11.6]} 50. Kf7 {[%clk 0:00:09.3]} 50... Kc6 {[%clk 0:00:11.7]}
51. Bf6 {[%clk 0:00:03.3]} 51... Rxb4 {[%clk 0:00:10.9]} 52. Kg6 {[%clk
0:00:03.8]} 52... Rb6 {[%clk 0:00:09.3]} 53. Bg5 {[%clk 0:00:04.3]} 53... Kd5+
{[%clk 0:00:08.5]} 54. Kxh5 {[%clk 0:00:05.2]} 54... Ke5 {[%clk 0:00:09]} 55.
Kg4 {[%clk 0:00:04.7]} 55... Rb4+ {[%clk 0:00:09.2]} 56. Kh5 {[%clk 0:00:04.3]}
56... Kf5 {[%clk 0:00:09.7]} 57. Kh6 {[%clk 0:00:04]} 57... Rb6+ {[%clk
0:00:10.2]} 58. Kh5 {[%clk 0:00:03.9]} 58... Rb8 {[%clk 0:00:09.8]} 59. Kh6
{[%clk 0:00:01.7]} 59... Rb7 {[%clk 0:00:10]} 0-1